Cogmind - Beta 16 @@@ ROGUE MODE // 2026.01.06 @ 22:49:50 Player: mephiles96 Result: Destroyed by P-70 Sage with Tesla Rifle Performance ------------- Evolutions (6) 3000 Regions Visited (11) 2200 Robots Destroyed (133) 665 Value Destroyed (4486) 4486 Prototype IDs (5) 100 Alien Tech Used (0) 0 Bonus (315) 315 TOTAL SCORE: 10766 Bonus ------- Follower Combat Kills 315 Cogmind --------- Core Integrity 0/1150 Matter 285/300 Energy 100/100 System Corruption 17% Temperature Cool (0) Movement Core (700) Ox13 Location -4/Factory Parts ------- > --- POWER (2) -------- (None) > --- PROPULSION (5) --- (None) > --- UTILITY (9) ------ High-capacity Storage Unit Advanced Signal Interpreter Improved Target Analyzer Improved Hacking Suite > --- WEAPON (3) ------- (None) > --- INVENTORY (20) --- Micro Fission Core Field Propulsion Drive Improved Heat Sink Large Storage Unit Medium Matter Pod (100) Improved Reaction Control System Improved Cloaking Device High-powered Shock Rifle Heavy Laser Peak State ------------ > --- POWER ------------ Enhanced Fission Core Micro Fission Core > --- PROPULSION ------- Carbon-fiber Leg Armored Leg Myomer Leg Armored Wheel Diametric Drive > --- UTILITY ---------- High-capacity Storage Unit Enhanced Optical Array Improved Sensor Array Advanced Signal Interpreter Improved Transmission Jammer Phase Shifter Improved Cloaking Device Layered Medium Armor Plating Layered Medium Armor Plating > --- WEAPON ----------- Barrage Gun Heavy Machine Gun KE Penetrator > --- INVENTORY -------- Improved Deuterium Engine Light Antimatter Reactor Field Propulsion Drive Impulse Thruster Advanced Heat Sink Large Storage Unit Medium Matter Pod Improved Target Analyzer Improved Transmission Jammer Advanced ECM Suite Improved Cloaking Device Improved Hacking Suite Heavy Riot Gun Heavy Laser Heavy Flak Cannon Heavy Missile Launcher Great Maul [Rating: 101] Favorites ----------- Power Fission Core Engine Light Ion Engine Power Core Fission Core Reactor Light Antimatter Reactor Propulsion Carbon-fiber Leg Treads Light Treads Leg Carbon-fiber Leg Wheel Compact Wheel Hover Unit Antigrav System Flight Unit Diametric Drive Utility Large Storage Unit Device Seismic Detector Storage Large Storage Unit Processor Enhanced Optical Array Hackware Hacking Suite Protection Layered Medium Armor Plating Weapon Heavy Machine Gun Energy Gun Wave Gun Ballistic Gun Heavy Machine Gun Ballistic Cannon Heavy Flak Cannon Launcher Heavy Missile Launcher Special Weapon Mining Laser Impact Weapon Great Maul Build | -11 -10 -9 -9 -8 -7 -6 -6 -5 -5 -5 -4 ------- Run | Yrd Mat Mat Sto Mat Fac Fac Ext Fac Upp Upp Fac Slots Evolved 12 | . . 2 . 2 2 2 . 2 . . 2 Power 1 | . . . . . 1 . . . . . . Propulsion 3 | . . 1 . . 1 . . 1 . . . Utility 7 | . . 1 . 2 . 2 . . . . 2 Weapon 1 | . . . . . . . . 1 . . . Parts Attached 136 | 7 5 7 9 18 4 16 21 12 3 2 32 Power 23 | 1 1 1 1 4 1 1 8 1 1 . 3 Engine 10 | 1 1 1 1 1 . . 5 . . . . Core 12 | . . . . 3 1 1 3 1 1 . 2 Reactor 1 | . . . . . . . . . . . 1 Propulsion 42 | 2 . 4 1 6 1 4 8 1 . . 15 Treads 7 | 2 . 3 1 1 . . . . . . . Leg 22 | . . 1 . 4 1 4 8 1 . . 3 Wheel 6 | . . . . 1 . . . . . . 5 Hover 2 | . . . . . . . . . . . 2 Flight 5 | . . . . . . . . . . . 5 Utility 42 | 2 1 2 3 6 2 5 4 7 1 . 9 Device 17 | 1 . 1 1 2 1 2 . 3 1 . 5 Storage 6 | 1 1 . . 1 1 . . 1 . . 1 Processor 9 | . . . 1 1 . 1 3 2 . . 1 Hackware 2 | . . . . . . 1 . . . . 1 Protection 8 | . . 1 1 2 . 1 1 1 . . 1 Artifact . | . . . . . . . . . . . . Weapon 29 | 2 3 . 4 2 . 6 1 3 1 2 5 Energy Gun 3 | . . . . . . . . . . 1 2 Energy Cannon . | . . . . . . . . . . . . Ballistic Gun 18 | 2 2 . 3 2 . 4 . 1 1 1 2 Ballistic Cannon 4 | . . . . . . 2 . 1 . . 1 Launcher 2 | . . . 1 . . . 1 . . . . Special Weapon 1 | . 1 . . . . . . . . . . Impact Weapon 1 | . . . . . . . . 1 . . . Slashing Weapon . | . . . . . . . . . . . . Piercing Weapon . | . . . . . . . . . . . . Special Melee Weapon . | . . . . . . . . . . . . Unidentified Prototypes 5 | . . . 3 . . . . . . . 2 Corrupted Parts 7 | . . . . . . 2 2 . . 2 1 System Corruption 29 | . . . . . . 4 7 . . 15 3 Parts Lost 80 | . 1 . . 11 . 9 12 . 5 1 41 Power 15 | . 1 . . 3 . 2 3 . 1 . 5 Propulsion 26 | . . . . 2 . 3 4 . 1 1 15 Utility 24 | . . . . 4 . 4 3 . 2 . 11 Weapon 15 | . . . . 2 . . 2 . 1 . 10 Highest Loss Streak 16 | . 1 . . 6 . 4 9 . 4 1 16 To Critical Strikes 5 | . . . . . . . 1 . . . 4 Average Backups 13 | 5 11 14 15 13 14 12 13 14 14 13 12 Power . | . . . . . . . . . 1 1 1 Propulsion 2 | 3 4 3 4 3 3 2 3 1 1 . 1 Utility 5 | . 3 6 5 4 5 4 5 9 8 7 6 Weapon 4 | 1 2 4 5 5 5 5 4 2 3 5 3 Tool/Special . | . . . . . . . . . . . . Unused Backups 24 | . 4 3 2 2 5 . 1 2 1 . 4 Power 2 | . . . 1 . . . . . . . 1 Propulsion 4 | . 2 . . 2 . . . . . . . Utility 12 | . 1 3 . . 2 . 1 2 1 . 2 Weapon 6 | . 1 . 1 . 3 . . . . . 1 Tool/Special . | . . . . . . . . . . . . Average Slot Usage (%) 95 | . 99 99 99 98 93 87 95 98 98 96 80 Engine 4 | . 13 11 11 1 . . 4 1 . . . Core 5 | . . . . 6 8 9 5 8 10 11 7 Treads 9 | . 28 28 33 12 . . . . . . . Leg 15 | . . 4 . 14 30 23 24 27 28 19 7 Wheel 1 | . . . . . . . . . . 5 7 Device 17 | . 14 20 18 21 23 21 13 15 16 17 16 Storage 7 | . 14 11 11 9 7 7 6 4 5 5 5 Processor 10 | . . . 3 9 7 6 21 18 13 11 11 Protection 1 | . . 1 . 3 . 1 2 . 2 5 4 Ballistic Gun 15 | . 27 22 21 17 15 5 12 10 13 11 6 Peak Build Rating 101 | 8 11 17 24 29 36 50 63 81 84 83 101 Average Rating 45 | 6 8 15 17 24 32 40 53 76 81 79 77 On Entrance 38 | . 8 11 17 17 28 36 44 61 80 83 75 Avg Prop Armor Cover (%) 7 | . . 5 . . 5 18 4 4 2 2 9 Naked Turns . | . . . . . . . . . . . . Heaviest Build 93 | 13 30 37 41 47 42 55 59 61 66 66 93 Greatest Support 100 | 40 40 63 63 63 60 61 80 91 91 76 100 Greatest Overweight (x) 23 | 3 . . . 2 . 3 1 . . 1 23 Average Overweight (x) . | . . . . . . . . . . . 3 Largest Inventory Capacity 25 | 8 15 15 15 15 25 15 15 15 15 15 20 Average Capacity 15 | 7 13 15 15 15 15 15 15 14 15 15 18 Most Carried 17 | 8 15 15 15 15 16 15 15 15 15 13 17 Average Carried 13 | 5 11 14 14 13 14 12 13 14 14 13 13 Final Capacity 20 | 8 15 15 15 15 15 15 15 15 15 15 20 Final Carried 15 | 8 15 15 15 14 15 12 14 14 13 13 9 Class Distribution -------------------- 46% | Scavenger-Mutant 18% | Mutant 17% | Scavenger-Skirmisher 6% | Scavenger-Assassin 4% | Infiltrator-Tank Dominant Class ---------------- Mutant | -10/Materials Mutant | -9/Materials Scavenger-Mutant | -9/Storage Scavenger-Mutant | -8/Materials Scavenger-Mutant | -7/Factory Scavenger-Mutant | -6/Factory Scavenger-Mutant | -6/Extension Scavenger-Assassin | -5/Factory Scavenger-Skirmisher | -5/Upper Caves Infiltrator-Skirmisher | -5/Upper Caves Infiltrator-Tank | -4/Factory Resources | -11 -10 -9 -9 -8 -7 -6 -6 -5 -5 -5 -4 ----------- Run | Yrd Mat Mat Sto Mat Fac Fac Ext Fac Upp Upp Fac Matter Collected 5593 | 360 175 117 675 821 41 656 892 239 654 39 924 Remotely 117 | . . . . . . . . . . . 117 Salvage Created 5045 | 283 195 117 558 886 41 343 890 192 301 39 1200 Parts 268 | 27 8 8 47 48 7 15 23 21 6 2 56 Haulers Intercepted 2 | . . . 1 1 . . . . . . . Recyclers Shooed 6 | . . . . . . 2 3 . . . 1 Parts Field Recycled . | . . . . . . . . . . . . Retrieved Matter . | . . . . . . . . . . . . Parts Self-Destructed 6 | . . . . . . . . . 4 2 . Prevented . | . . . . . . . . . . . . Parts Restored . | . . . . . . . . . . . . Kills | -11 -10 -9 -9 -8 -7 -6 -6 -5 -5 -5 -4 ------- Run | Yrd Mat Mat Sto Mat Fac Fac Ext Fac Upp Upp Fac Combat Hostiles Destroyed 99 | . 6 2 18 23 1 9 14 12 4 1 9 Melee 1 | . . . . . . . . . . . 1 Guns 49 | . 6 2 8 15 1 3 8 1 1 . 4 Cannons 12 | . . . . . . 6 . 2 1 1 2 AOE 37 | . . . 10 8 . . 6 9 2 . 2 Classes Destroyed 15 | 3 2 1 3 2 1 1 1 . 1 . . Worker 10 | 2 1 . 2 1 . 2 . . . . 2 Builder 8 | . . . . 1 . . 1 . . . 6 Tunneler 5 | 5 . . . . . . . . . . . Hauler 2 | . . . 1 1 . . . . . . . Recycler 8 | 1 . . . . . . 2 . . . 5 Operator 1 | . . . 1 . . . . . . . . Swarmer 33 | . 3 . 6 7 . 3 4 10 . . . Grunt 32 | . 3 . 7 12 . 3 5 . 2 . . Brawler 2 | . . . 1 . . . . . 1 . . Duelist 1 | . . . . . . 1 . . . . . Sentry 12 | . . 2 4 2 . . 3 . . . 1 Hunter 8 | . . . . 2 . 2 . . . . 4 Programmer 9 | . . . . . 1 . . 2 1 1 4 Behemoth 2 | . . . . . . . 2 . . . . Decomposer 3 | . . . . . . . . . 3 . . Samaritan 1 | . . . . . . . . . 1 . . Best Kill Streak 5 | 5 5 1 5 5 1 4 5 5 2 1 5 Combat Bots Only 5 | . 4 1 3 5 1 3 4 5 2 1 2 Max Kills in Single Turn 5 | 1 1 1 4 4 1 2 2 5 2 1 3 Gunslinging . | . . . . . . . . . . . . Exploded 5 | . . . 3 4 . . 2 5 2 . 1 Melee 1 | . . . . . . . . . . . 1 Uniques/NPCs Destroyed . | . . . . . . . . . . . . Combat | -11 -10 -9 -9 -8 -7 -6 -6 -5 -5 -5 -4 -------- Run | Yrd Mat Mat Sto Mat Fac Fac Ext Fac Upp Upp Fac Hostile Shots Fired 1116 | . 30 14 78 175 8 79 167 71 38 8 448 Missed 351 | . 6 6 26 53 4 25 51 30 12 3 135 Hits 765 | . 24 8 52 122 4 54 116 41 26 5 313 Melee 9 | . . . . . . 6 . . 3 . . Projectile 756 | . 24 8 52 122 4 48 116 41 23 5 313 AOE 2 | . . . . . . 1 . . . . 1 Critical Strikes 36 | . . . . 6 . 3 4 . 5 1 17 Part Disruptions 1 | . . . . . . . . 1 . . . Damage Taken 12491 | . 220 118 620 1737 86 1164 1709 985 427 102 5323 Core 2366 | . 24 14 149 190 28 267 318 139 76 . 1161 Absorbed by Shields 124 | . . . . . . . 124 . . . . Regen/Repaired (Parts) 333 | . . . 13 42 . . 166 112 . . . Core Remaining (%) 74 | 100 90 . 59 65 96 . 31 . . 78 . Volleys Fired 353 | 15 25 7 40 70 4 38 55 14 24 4 57 Largest 3 | 2 2 2 2 2 2 2 2 3 3 3 3 Hottest 136 | 40 100 46 100 56 51 74 69 113 107 107 136 Shots Fired 685 | 30 48 14 67 139 8 59 101 30 69 12 108 Gun 578 | 30 46 14 53 134 8 29 94 18 63 8 81 Cannon 68 | . . . . . . 30 . 6 4 4 24 Launcher 34 | . . . 11 5 . . 7 6 2 . 3 Special 5 | . 2 . 3 . . . . . . . . Kinetic 626 | 30 46 14 53 134 8 59 94 24 67 12 85 Thermal 18 | . 2 . 3 . . . . . . . 13 Explosive 34 | . . . 11 5 . . 7 6 2 . 3 Electromagnetic 7 | . . . . . . . . . . . 7 Robot Hit Streak 34 | 6 7 13 15 34 4 7 22 3 7 2 10 Robot Miss Streak 7 | 5 3 . 4 2 1 6 4 4 4 4 7 Penetration Max 1 | . . . . 1 . 1 . . . . . Secondary Targets 3 | . . . . . . . 3 . . . . Max Gunslinging Chain 1 | . . . . . . . 1 . . . . Shots Hit Robots 458 | 13 26 13 37 111 6 42 78 14 38 8 72 Core Hits 249 | 9 9 4 31 49 2 29 37 20 18 2 39 Critical Kills 6 | . . . . 2 . 1 . . . . 3 Critical Parts Destroyed 6 | . . . . 1 . . 1 . . . 4 Critical Strikes 15 | . . . . 3 . 3 1 . . . 8 Destroy 6 | . . . . 3 . 1 1 . . . 1 Blast 3 | . . . . . . 2 . . . . 1 Smash 6 | . . . . . . . . . . . 6 Melee Attacks 28 | . . . . . . . . 15 3 . 10 Impact 28 | . . . . . . . . 15 3 . 10 Slashing . | . . . . . . . . . . . . Piercing . | . . . . . . . . . . . . Sneak Attacks 7 | . . . . . . . . . . . 7 Combat Hostiles . | . . . . . . . . . . . . Follow-up Attacks . | . . . . . . . . . . . . Damage Inflicted 14475 | 181 346 200 1343 2384 128 1389 2755 1117 1332 169 3131 Guns 7521 | 181 342 200 470 1788 128 381 1831 288 806 119 987 Cannons 1731 | . . . . . . 863 . 111 122 50 585 Explosions 4326 | . . . 862 596 . 145 903 718 312 . 790 Melee 861 | . . . . . . . . . 92 . 769 Ramming 36 | . 4 . 11 . . . 21 . . . . Kinetic 8939 | 181 342 200 470 1788 128 1244 1831 399 928 169 1259 Thermal 684 | . . . . . . 14 50 . . . 620 Explosive 3688 | . . . 862 596 . . 853 718 312 . 347 Electromagnetic 267 | . . . . . . 131 . . . . 136 Impact 861 | . . . . . . . . . 92 . 769 Slashing . | . . . . . . . . . . . . Piercing . | . . . . . . . . . . . . Highest Corruption 30 | . . . . . 1 4 11 4 14 30 17 Average Corruption 6 | . . . . . 1 3 7 2 9 15 6 Corruption Purged . | . . . . . . . . . . . . Corruption Blocked . | . . . . . . . . . . . . Effects 104 | . . . . . . . 36 11 43 2 12 Message Errors 24 | . . . . . . . 9 2 10 . 3 Matter Fused 23 | . . . . . . . 5 1 15 . 2 Heat Flow Errors 17 | . . . . . . . 4 2 8 1 2 Energy Discharges 11 | . . . . . . . 4 2 4 . 1 Parts Rejected 3 | . . . . . . . 2 . . . 1 Parts Fused 1 | . . . . . . . . 1 . . . Data Loss (minor) 15 | . . . . . . . 7 2 3 1 2 Data Loss (major) 4 | . . . . . . . 1 1 1 . 1 Misfires 3 | . . . . . . . 1 . 2 . . Alerts 2 | . . . . . . . 2 . . . . Weapon Failures 1 | . . . . . . . 1 . . . . Overload Shots . | . . . . . . . . . . . . Overflow Damage 500 | . . . 19 . . 121 35 17 . . 308 Projectiles 121 | . . . . . . 121 . . . . . Explosions 135 | . . . 19 . . . 35 17 . . 64 Melee 244 | . . . . . . . . . . . 244 Knockbacks 34 | . . . . . . 5 . 4 2 1 22 Impact 4 | . . . . . . . . . . . 4 Kinetic 25 | . . . . . . 4 . 4 2 1 14 Secondary 5 | . . . . . . 1 . . . . 4 Self-Inflicted Damage 592 | . . . 40 34 . 106 73 225 . . 114 Shots 16 | . . . 2 1 . 2 3 4 . . 4 Rammed 5 | . 1 . 4 . . . . . . . . Targets Rammed 8 | . 1 . 4 . . . 3 . . . . Kicked 3 | . . . . . . . 3 . . . . Crushed . | . . . . . . . . . . . . Highest Temperature 454 | . 40 22 24 214 . 50 454 182 274 249 384 Average Temperature 83 | . 22 13 6 60 . 13 121 58 85 130 134 Received Heat Transfer 2169 | . 72 36 201 837 . 126 819 18 30 . 30 Effects 6 | . . . . . . . 4 . . . 2 Shutdowns 3 | . . . . . . . 2 . . . 1 Energy Bleed 3 | . . . . . . . 2 . . . 1 Siege Activations . | . . . . . . . . . . . . Martial Activations . | . . . . . . . . . . . . Shielding Activations . | . . . . . . . . . . . . Robots Disrupted . | . . . . . . . . . . . . Combat Hostiles . | . . . . . . . . . . . . Robots Corrupted 2 | . . . . . . . . . . . 2 Combat Hostiles . | . . . . . . . . . . . . Parts Fried 5 | . . . . . . . . . . . 5 Impact Corruptions 8 | . . . . . . . . . . . 8 Robots Melted . | . . . . . . . . . . . . Combat Hostiles . | . . . . . . . . . . . . Parts Melted 4 | . . . . . . . . . . . 4 Heat Transferred 559 | . . . . . . 50 . . . . 509 Parts Sabotaged . | . . . . . . . . . . . . Parts Stolen . | . . . . . . . . . . . . Parts Stripped . | . . . . . . . . . . . . Power Chain Reactions 2 | . . . . . . 1 . . . . 1 Alert | -11 -10 -9 -9 -8 -7 -6 -6 -5 -5 -5 -4 ------- Run | Yrd Mat Mat Sto Mat Fac Fac Ext Fac Upp Upp Fac Maximum Alert Level 1 | . . . 1 . . . . 1 . . . Low Security (%) 99 | 100 100 100 98 100 100 100 100 96 . . 100 Level 1 . | . . . 1 . . . . 3 . . . Level 2 . | . . . . . . . . . . . . Level 3 . | . . . . . . . . . . . . Level 4 . | . . . . . . . . . . . . Level 5 . | . . . . . . . . . . . . High Security . | . . . . . . . . . . . . Max Security . | . . . . . . . . . . . . Peak Influence 363 | 10 133 31 201 154 67 103 191 363 . . 107 Initial 67 | . . 8 . 19 67 . 42 . . . 12 Average 35 | 1 30 8 41 48 14 24 55 42 . . 15 Influence Increases 3827 | 40 193 61 605 627 30 270 729 674 120 30 448 Destroy 0b10 Robot/C 2140 | . 120 40 360 460 20 180 440 240 80 20 180 Destroy 0b10 Robot/NC 185 | 40 5 . 20 15 . 10 25 . 5 . 65 Destroy Leader 458 | . 20 20 92 102 10 40 64 30 20 10 50 Allied During Kill 76 | . . . . . . . 76 . . . . Successful Hack 114 | . . . 36 . . . 38 40 . . . Disable Machine 315 | . . . 15 30 . 30 45 135 . . 60 Destroy Structure 419 | . 3 1 67 5 . 10 41 214 . . 78 Partial Spotted 15 | . . . . . . . . . . . 15 Lose Combat Pursuer 105 | . 45 . 15 15 . . . 15 15 . . Influence Decreases 3827 | 40 173 80 559 524 178 185 816 321 466 17 468 Entered New Map 312 | . . 12 1 28 83 2 45 . 131 2 8 Time Decay 2469 | 40 163 68 360 396 95 133 370 321 305 10 208 Lost Part 541 | . 10 . . 100 . 50 94 . 30 5 252 Lost Ally 142 | . . . . . . . 142 . . . . Purge Threat 363 | . . . 198 . . . 165 . . . . Squads Dispatched 17 | . 2 . 2 4 2 1 2 2 . . 2 Investigation 4 | . . . . 1 1 1 1 . . . . Extermination 5 | . . . . . 1 . . 2 . . 2 Reinforcement 7 | . 2 . 2 2 . . 1 . . . . Assault . | . . . . . . . . . . . . Garrison 1 | . . . . 1 . . . . . . . Intercept . | . . . . . . . . . . . . Searches Triggered . | . . . . . . . . . . . . Construction Impeded . | . . . . . . . . . . . . Haulers Reinforced . | . . . . . . . . . . . . Active Scanning Responses . | . . . . . . . . . . . . Cargo Convoy Interrupts . | . . . . . . . . . . . . Stealth | -11 -10 -9 -9 -8 -7 -6 -6 -5 -5 -5 -4 --------- Run | Yrd Mat Mat Sto Mat Fac Fac Ext Fac Upp Upp Fac Distress Signals 16 | . 4 1 2 4 . . 3 1 . . 1 Communications Jammed 19 | . . . . . . . . 3 . . 16 Distress Signals 19 | . . . . . . . . 3 . . 16 Times Spotted 171 | . 16 5 25 43 2 13 26 18 5 1 17 Peak Tracking Total 8 | . 7 3 3 8 2 4 5 4 3 1 5 Tactical Retreats 19 | . 1 . 1 8 . 4 2 2 1 . . ECM-based Alert Blocks 24 | . . . . 13 . 7 2 2 . . . Traps | -11 -10 -9 -9 -8 -7 -6 -6 -5 -5 -5 -4 ------- Run | Yrd Mat Mat Sto Mat Fac Fac Ext Fac Upp Upp Fac Traps Triggered 3 | . . . . 1 1 . . 1 . . . Indirectly . | . . . . . . . . . . . . Trap Hack Attempts . | . . . . . . . . . . . . Triggered . | . . . . . . . . . . . . Disarmed . | . . . . . . . . . . . . Reprogrammed . | . . . . . . . . . . . . Reused . | . . . . . . . . . . . . Traps Extracted . | . . . . . . . . . . . . Installed . | . . . . . . . . . . . . Triggered . | . . . . . . . . . . . . Machines | -11 -10 -9 -9 -8 -7 -6 -6 -5 -5 -5 -4 ---------- Run | Yrd Mat Mat Sto Mat Fac Fac Ext Fac Upp Upp Fac Machines Disabled 21 | . . . 1 2 . 2 3 9 . . 4 Max in Single Turn 6 | . . . 1 1 . 1 2 6 . . 1 Garrison Access 1 | . . . 1 . . . . . . . . Energy Cycler 2 | . . . . . . . 2 . . . . Machines Repaired . | . . . . . . . . . . . . Machines Dismantled . | . . . . . . . . . . . . Machines Sabotaged . | . . . . . . . . . . . . Overloaded Fab Kills . | . . . . . . . . . . . . Hacking | -11 -10 -9 -9 -8 -7 -6 -6 -5 -5 -5 -4 --------- Run | Yrd Mat Mat Sto Mat Fac Fac Ext Fac Upp Upp Fac Machines Accessed 33 | . 2 1 10 2 2 3 8 3 1 . 1 Terminals 22 | . 2 1 8 . 1 1 6 1 1 . 1 Fabricators 2 | . . . . . 1 1 . . . . . Repair Stations 4 | . . . 1 1 . . 1 1 . . . Recycling Units 1 | . . . . . . . 1 . . . . Scanalyzers 2 | . . . . 1 . 1 . . . . . Garrison Access 2 | . . . 1 . . . . 1 . . . Total Hacks 84 | . 2 2 28 5 7 11 22 5 1 . 1 Successful 47 | . 1 1 14 3 4 8 11 4 1 . . Failed 37 | . 1 1 14 2 3 3 11 1 . . 1 Catastrophic 8 | . 1 . 3 . 1 . 3 . . . . Database Lockouts . | . . . . . . . . . . . . Manual 31 | . 2 1 18 . 1 . 6 2 . . 1 Terminals 49 | . 2 2 23 . 4 1 13 2 1 . 1 Fabricators 6 | . . . . . 3 3 . . . . . Repair Stations 16 | . . . 3 3 . . 8 2 . . . Recycling Units 1 | . . . . . . . 1 . . . . Scanalyzers 9 | . . . . 2 . 7 . . . . . Garrison Access 3 | . . . 2 . . . . 1 . . . Terminal Hacks 18 | . . 1 8 . 1 . 5 2 1 . . Record 3 | . . 1 . . . . 1 . 1 . . Part Schematic 2 | . . . 2 . . . . . . . . Robot Analysis 1 | . . . . . . . 1 . . . . Open Door 4 | . . . 3 . . . 1 . . . . Level Access Points 1 | . . . 1 . . . . . . . . Alert Level 2 | . . . . . 1 . . 1 . . . Unreport Threat 5 | . . . 2 . . . 2 1 . . . Fabricator Hacks 4 | . . . . . 3 1 . . . . . Load Schematic 2 | . . . . . 1 1 . . . . . Build 2 | . . . . . 2 . . . . . . Repair Station Hacks 11 | . . . 2 2 . . 5 2 . . . Scan Component 6 | . . . 1 1 . . 3 1 . . . Repair 5 | . . . 1 1 . . 2 1 . . . Recycling Unit Hacks 1 | . . . . . . . 1 . . . . Retrieve Components 1 | . . . . . . . 1 . . . . Scanalyzer 8 | . . . . 1 . 7 . . . . . Insert Component 3 | . . . . . . 3 . . . . . Analyze 3 | . . . . . . 3 . . . . . Retrieve Study 2 | . . . . 1 . 1 . . . . . Garrison Access Hacks 1 | . . . 1 . . . . . . . . Seal Access 1 | . . . 1 . . . . . . . . Unauthorized Hacks 4 | . 1 . 3 . . . . . . . . Terminals 4 | . 1 . 3 . . . . . . . . Botnet 4 | . 1 . 3 . . . . . . . . Fabricators . | . . . . . . . . . . . . Repair Stations . | . . . . . . . . . . . . Recycling Units . | . . . . . . . . . . . . Scanalyzers . | . . . . . . . . . . . . Garrison Access . | . . . . . . . . . . . . Data Cores Recovered . | . . . . . . . . . . . . Used . | . . . . . . . . . . . . Hacking Detections 26 | . 2 1 6 2 2 3 6 3 . . 1 Full Trace Events 3 | . . . . . 1 1 1 . . . . Feedback Events . | . . . . . . . . . . . . Feedback Blocked . | . . . . . . . . . . . . Robot Schematics Acquired . | . . . . . . . . . . . . Robots Built 1 | . . . . . 1 . . . . . . Authchips . | . . . . . . . . . . . . Time 116 | . . . . . 116 . . . . . . Total Robot Build Rating 3 | . . . . . 3 . . . . . . Part Schematics Acquired 5 | . . . 2 . . 3 . . . . . Parts Built 2 | . . . . . 2 . . . . . . Authchips . | . . . . . . . . . . . . Time 62 | . . . . . 62 . . . . . . Total Part Build Rating 4 | . . . . . 4 . . . . . . Part Studies Acquired 2 | . . . . 1 . 1 . . . . . Parts Repaired 5 | . . . 1 1 . . 2 1 . . . Time 177 | . . . 26 38 . . 100 13 . . . Parts Recycled . | . . . . . . . . . . . . Recycled Matter . | . . . . . . . . . . . . Retrieved Matter . | . . . . . . . . . . . . Retrieved Components 10 | . . . . . . . 10 . . . . Parts Scanalyzed 3 | . . . . . . 3 . . . . . Part Schematics Acquired 3 | . . . . . . 3 . . . . . Parts Damaged . | . . . . . . . . . . . . Bothacking | -11 -10 -9 -9 -8 -7 -6 -6 -5 -5 -5 -4 ------------ Run | Yrd Mat Mat Sto Mat Fac Fac Ext Fac Upp Upp Fac Used RIF Installer . | . . . . . . . . . . . . Robots Hacked . | . . . . . . . . . . . . Non-combat . | . . . . . . . . . . . . Combat . | . . . . . . . . . . . . Robot Hacks Applied . | . . . . . . . . . . . . Relay Couplers Released . | . . . . . . . . . . . . Fabnet Peak Effective % . | . . . . . . . . . . . . Robots Rewired 7 | . . . . . . . 7 . . . . Allies Hacked . | . . . . . . . . . . . . Hacks Repelled . | . . . . . . . . . . . . Allies | -11 -10 -9 -9 -8 -7 -6 -6 -5 -5 -5 -4 -------- Run | Yrd Mat Mat Sto Mat Fac Fac Ext Fac Upp Upp Fac Total Allies 9 | . . . . . 1 . 8 . . . . Largest Group 8 | . . . . . 1 . 8 . . . . Highest-Rated Group 386 | . . . . . 26 . 386 . . . . Highest-Rated Ally 159 | . . . . . 26 . 159 . . . . Total Orders . | . . . . . . . . . . . . Ally Attacks 65 | . . . . . . . 65 . . . . Total Damage 1549 | . . . . . . . 1549 . . . . Kills 10 | . . . . . . . 10 . . . . Allies Corrupted . | . . . . . . . . . . . . Allies Melted 1 | . . . . . . . 1 . . . . Intel | -11 -10 -9 -9 -8 -7 -6 -6 -5 -5 -5 -4 ------- Run | Yrd Mat Mat Sto Mat Fac Fac Ext Fac Upp Upp Fac Active Infowar (turns) 9958 | 88 915 306 1335 1547 413 508 1124 1202 1340 52 1128 Optics 5141 | . . . . . . 295 1124 1202 1340 52 1128 Sensors 2963 | . . . . . . . . 1096 1340 52 475 Terrain 2297 | . . 262 984 745 213 93 . . . . . Traps 389 | . . . . . . 389 . . . . . Seismic 5662 | 88 915 306 1291 1547 413 488 614 . . . . Machine Analysis 1308 | . . . . . . . 1124 184 . . . Cloaking 2476 | . . . . . . . . 1156 619 . 701 Jamming 3394 | . . . . . . . . 978 1340 52 1024 ECM 2419 | . . . . 1017 212 508 624 40 1 . 17 Robot Analysis Total 1 | . . . . . . . 1 . . . . Derelict Logs Recovered 1 | . . . . . . . . . 1 . . Drone Launches . | . . . . . . . . . . . . Drone Recoveries . | . . . . . . . . . . . . Exploration | -11 -10 -9 -9 -8 -7 -6 -6 -5 -5 -5 -4 ------------- Run | Yrd Mat Mat Sto Mat Fac Fac Ext Fac Upp Upp Fac Turns Passed 10178 | 225 915 306 1377 1547 413 508 1124 1202 1340 52 1169 Spaces Moved 5539 | 103 491 146 579 739 198 275 612 815 1106 18 457 Core 16 | 6 . . . . . . . . . . 10 Treads 1594 | 97 491 146 579 281 . . . . . . . Legs 3465 | . . . . 457 198 240 612 815 1106 18 19 Wheels 425 | . . . . 1 . 35 . . . . 389 Hover 22 | . . . . . . . . . . . 22 Flight 17 | . . . . . . . . . . . 17 Fastest Speed 50 | 50 160 160 160 105 105 105 105 108 111 112 96 Average Speed 130 | 157 160 160 160 127 105 115 110 111 111 164 182 Slowest Speed 1200 | 200 160 160 160 240 105 182 175 112 112 180 1200 Overloaded Moves . | . . . . . . . . . . . . Propulsion Burnouts . | . . . . . . . . . . . . Robots Hopped . | . . . . . . . . . . . . Potential Cave-ins 1 | . . . . . . 1 . . . . . Cave-ins Triggered . | . . . . . . . . . . . . Exploration Rate (%) 32 | 6 58 16 76 31 7 9 54 15 98 6 9 Regions Visited 11 Branch Regions 4 Pre-discovered Areas 1 | . . . 1 . . . . . . . . Known Exits Taken 4 | . . . 1 . . . . 1 1 1 . Unknown Exits Taken 7 | 1 1 1 . 1 1 1 1 . . . . Scrap Searched 3 | . . . . . . . . . 3 . . Spaces Dug 18 | . 2 . . . . . . 14 2 . . Terrain Destroyed 398 | . 2 . 60 2 . 10 103 140 35 2 44 Melee 16 | . . . . . . . . 14 2 . . Projectile 23 | . 2 . . . . 5 . 1 7 2 6 AOE 357 | . . . 60 2 . 5 103 125 26 . 36 Terrain Rammed . | . . . . . . . . . . . . Walls Destroyed . | . . . . . . . . . . . . Machines Disabled . | . . . . . . . . . . . . Actions | -11 -10 -9 -9 -8 -7 -6 -6 -5 -5 -5 -4 --------- Run | Yrd Mat Mat Sto Mat Fac Fac Ext Fac Upp Upp Fac Total 7746 | 132 571 211 954 1199 397 397 973 1051 1159 31 671 Wait 1353 | . 30 36 287 325 173 39 207 155 6 8 87 Move 5528 | 102 490 145 578 738 197 274 611 814 1105 17 457 Hop . | . . . . . . . . . . . . Pick Up 119 | 8 12 7 6 13 7 8 21 21 3 . 13 Fast Attach 44 | 7 . . 2 5 2 2 6 3 1 . 16 Attach 66 | . 1 2 . 10 1 15 13 1 5 . 18 Detach 8 | . . . . 1 . 5 . . 1 . 1 Swap 132 | . 5 6 27 26 5 12 14 18 9 2 8 Drop 78 | . 7 8 10 11 8 4 15 10 1 . 4 Fire 353 | 15 25 7 40 70 4 38 55 14 24 4 57 Melee 28 | . . . . . . . . 15 3 . 10 Ram . | . . . . . . . . . . . . Kick 3 | . . . . . . . 3 . . . . Crush 5 | . 1 . 4 . . . . . . . . Escape Stasis . | . . . . . . . . . . . . Rewire 29 | . . . . . . . 28 . 1 . . Trap . | . . . . . . . . . . . . Miscellaneous . | . . . . . . . . . . . . Route ------- -11/Scrapyard -10/Materials (discovered 3 exits: *Mat x2 / [*Min]) -9/Materials -9/Storage -8/Materials -7/Factory -6/Factory -6/Extension -5/Factory -5/Upper Caves -5/Upper Caves -4/Factory History --------- Turn | Location | Event 17 | -11/Scrapyard | Discovered new exit (range 16) 226 | -11/Scrapyard | Entered Materials 303 | -10/Materials | Build established: Mutant 602 | -10/Materials | Discovered new exit (range 9) 918 | -10/Materials | Discovered new exit (range 16) 1026 | -10/Materials | Derelicts attacked the area 1077 | -10/Materials | Discovered new exit (range 11) 1141 | -10/Materials | Entered another Materials area 1141 | -9/Materials | Evolved 2 slots: Propulsion x1, Utility x1 1287 | -9/Materials | Discovered new exit (range 16) 1447 | -9/Materials | Entered Storage 1686 | -9/Storage | Build established: Scavenger-Mutant 1903 | -9/Storage | Learned location of Armory (-4) 2255 | -9/Storage | Repaired Seismic Detector 2553 | -9/Storage | Identified exit to Materials 2824 | -9/Storage | Entered Materials 2824 | -8/Materials | Evolved 2 slots: Utility x2 3580 | -8/Materials | Lost 6 parts (1p2n2u1w) 3744 | -8/Materials | Repaired Carbon-fiber Leg+ 3992 | -8/Materials | Discovered new exit (range 11) 4338 | -8/Materials | Garrison activated, responded to threat 4371 | -8/Materials | Entered Factory 4371 | -7/Factory | Evolved 2 slots: Power x1, Propulsion x1 4506 | -7/Factory | Fabricated O-24 Administrator (x1) 4568 | -7/Factory | Fabricated Med. Armor Plating (x2) 4753 | -7/Factory | Discovered new exit (range 16) 4784 | -7/Factory | Entered another Factory area 4784 | -6/Factory | Evolved 2 slots: Utility x2 5060 | -6/Factory | Lost 4 parts (1p2n1u) 5160 | -6/Factory | Discovered new exit (range 15) 5218 | -6/Factory | Lost 4 parts (1p1n2u) 5292 | -6/Factory | Entered Extension 5337 | -6/Extension | Energy Cycler disabled 5337 | -6/Extension | Rescued a captive Derelict 5337 | -6/Extension | Rescued a captive Derelict 5338 | -6/Extension | Rescued a captive Derelict 5340 | -6/Extension | Rescued a captive Derelict 5341 | -6/Extension | Rescued a captive Derelict 5355 | -6/Extension | Rescued A7 5357 | -6/Extension | Rescued a captive Derelict 5835 | -6/Extension | Spotted B-75 Beast 5855 | -6/Extension | Discovered new exit (range 19) 5856 | -6/Extension | Spotted B-75 Beast 5872 | -6/Extension | Extracted ID and sensor layout for unrecognized location from A7's data core 5907 | -6/Extension | Destroyed B-75 Beast 5917 | -6/Extension | Core integrity fell below 50% 5934 | -6/Extension | Lost 8 allies 5937 | -6/Extension | System corruption reached 10% 5970 | -6/Extension | Destroyed B-75 Beast 6008 | -6/Extension | Lost 9 parts (2p3n2u2w) 6236 | -6/Extension | Repaired Carbon-fiber Leg+ 6299 | -6/Extension | Repaired Myomer Leg 6342 | -6/Extension | Disrupted transfer network 6416 | -6/Extension | Entered Factory 6416 | -5/Factory | Evolved 2 slots: Propulsion x1, Weapon x1 6655 | -5/Factory | Repaired Lrg. Storage Unit 7095 | -5/Factory | Build established: Scavenger-Skirmisher 7478 | -5/Factory | Build established: Scavenger-Assassin 7592 | -5/Factory | Discovered new exit (range 22) 7617 | -5/Factory | Identified exit to Upper Caves 7618 | -5/Factory | Entered Upper Caves 7828 | -5/Upper Caves | Learned location of 1 exit from Proximity Caves 7857 | -5/Upper Caves | Build established: Scavenger-Skirmisher 8258 | -5/Upper Caves | System corruption reached 10% 8302 | -5/Upper Caves | Lost 4 parts (1p2u1w) 8510 | -5/Upper Caves | Discovered new exit (range 4) 8514 | -5/Upper Caves | Identified exit to Upper Caves 8837 | -5/Upper Caves | Spotted B-75 Beast 8958 | -5/Upper Caves | Entered another Upper Caves area 8958 | -5/Upper Caves | Discovered new exit (range 17) 9005 | -5/Upper Caves | Identified exit to Factory 9009 | -5/Upper Caves | System corruption reached 30% 9010 | -5/Upper Caves | Entered Factory 9010 | -4/Factory | Evolved 2 slots: Utility x2 9303 | -4/Factory | Build established: Infiltrator-Tank 9588 | -4/Factory | Lost 12 parts (1p3n5u3w) 9687 | -4/Factory | Lost 11 parts (1p5n1u4w) 10116 | -4/Factory | Core integrity fell below 50% 10142 | -4/Factory | System corruption reached 10% 10146 | -4/Factory | Core integrity fell below 20% 10179 | -4/Factory | Destroyed by P-70 Sage with Tesla Rifle Last Messages --------------- 10166_ U-05 Engineer lays Concrete. 10168_ K-01 Serf collects debris. 10168_ U-05 Engineer builds a Wall. 10169_ Field Propulsion Array destroyed. 10171_ Penetrated by Slug. 10171_ Enh. Optical Array destroyed. 10171_ Penetrated by Slug. 10171_ Slug penetrates Wall. 10172_ U-05 Engineer lays Concrete. 10173_ U-05 Engineer builds a Wall. 10175_ Penetrated by Slug. 10175_ Imp. Deuterium Engine destroyed. 10175_ Penetrated by Slug. 10175_ Adv. Heat Sink destroyed. 10176_ K-01 Serf collects debris. 10177_ U-05 Engineer lays Concrete. 10178_ Penetrated by Slug. 10178_ Slug penetrates Wall. 10178_ U-05 Engineer builds a Wall. 10179_ K-01 Serf collects debris. Map ----- +----------------------------------------------------+ | ?????????????????????????????????????????????????? | | ?????????????????????????????????????????????????? | | ?????????????????????????????????????????????????? | | ?????????????????????????????????????????????????? | | ?????????????????????????????????????????????????? | | ?????????????????????????????????????????????????? | | ?????????????????????????????????????????????????? | | ?????????????????????????????????????????????????? | | ?????????????????????????????????????????????????? | | ?????????????????????????????????????????????????? | | ?????????????????????????????????????????????????? | | ?????????????????????????????????????????????????? | | ?????????????????????????????????????????????????? | | ??????????????? ???????????????????????????????? | | ????????????? ???????????????????????????????? | | ????????????# ???????????????????????????????? | | ????????????# #??????????????????????????????? | | ????????????# #??????????????????????????????? | | ????????????# #??????????????????????????????? | | ????????????# #??????????????????????????????? | | ????????????# #??????????????????????????????? | | ????????????# #??????????????????????????????? | | ????????????# ##########?????????????????????? | | ????????????#^ # #?????????????????????? | | ##??????????# # #?????????????????????? | | ########???# # """ @!#?????????????????????? | | #???# # """" #?????????????????????? | | """" #???# # """" #?????????????????????? | | """" #???# + """" p#?????????????????????? | | ! """" #???# # """"h #?????????????????????? | | ! """" #???# # """ #?????????????????????? | | """" #???# # u #?????????????????????? | | """" #???# #"#####;;######????????????????? | | """" ##### %|| u """" #????????????????? | | + |!! "" #????????????????? | | ##### * *%! #????????????????? | | #???# #= #????????????????? | | #???# %#% $/ #????????????????? | | #+########### # !% #????????????????? | | =%#""%!";;;+#####????????????????? | | [# " " ; #????????????????????? | | ##" # ### #????????????????????? | | ### ##??? #????????????????????? | | ! #?#/#????##????????????????????? | | #### #? ??????????????????????????? | | ##?# #? ??????????????????????????? | | ##?# #? ??????????????????????????? | | ######??# #? ??????????????????????????? | | # # #??# #? ??????????????????????????? | | # ####??# #? ??????????????????????????? | +----------------------------------------------------+ Best States ------------- Heat Dissipation 62 Energy Generation 37 Energy Capacity 565 Matter Stores 400 Matter Capacity 400 Sight Range 22 Robot Scan Range 15 Terrain Scan Range 16 Terrain Scan Density 85 ECM Strength 2 Jamming Range 14 Cloak Strength 4 Armor Coverage 450 Phase Shifting 5 Evasion (%) 63 Targeting Accuracy 10 Target Analysis 6 Recoil Reduction 3 Offensive Hacking 12 Item Schematics ----------------- Disposable Heat Sink | -9/Storage | Hacked Med. Armor Plating | -9/Storage | Hacked Carbon-fiber Leg | -6/Factory | Scanalyzed Arm. Leg | -6/Factory | Scanalyzed Seismic Detector | -6/Factory | Scanalyzed Robot Schematics ------------------ None Fabricated ------------ O-24 Administrator | x1 | -7/Factory | Preloaded Med. Armor Plating | x2 | -7/Factory Repaired ---------- Seismic Detector | 35% | -9/Storage Carbon-fiber Leg | 61% | -8/Materials Carbon-fiber Leg | 25% | -6/Extension Myomer Leg | 47% | -6/Extension Lrg. Storage Unit | 68% | -5/Factory Studied --------- Carbon-fiber Leg | -8/Materials | Hacked Arm. Leg | -6/Factory | Hacked Alien Tech Used ----------------- None Achievements -------------- Explosive Keycard Part-time Excavator Prison Break We Love MA Challenges ------------ None Game ------ Seed DisruptorMetafiberAutobeam Manual? 0 Play Time 01:49:13 Cumulative 29.9 hours Start 2026.01.05 @ 22:30:02 End 2026.01.06 @ 22:49:50 Sessions 3 Manual Loads 0 Difficulty Rogue Special Mode None Game No. 34 Rogue 34 Adventurer 0 Explorer 0 Win Type - Total 0 Types 0/0/0/0/0/0/0/0/0/0 Lore% 14 Gallery% 29 Achievement% 22 Wizard Run 0 Options --------- Layout 2 ASCII 0 Keyboard 0 Movement Numpad Keybinds 1 Fullscreen 1 Font 24/Smallcaps Map View 50x44 Zoom Use 0% Tactical HUD 1 Map Filters NONE Filters NONE Steam 1 RUN: 4bd400c4-4360-43ca-a36c-3ed31915452c